bitfinex-derivatives/quotes_BTCF0:USTF0_20250121
["timestamp","ask_amount","ask_price","bid_price","bid_amount"]
[1737495592272,0.75137119,106430.0,106420.0,0.39738624]
[1737495594170,0.75137119,106430.0,106420.0,0.45300353]
[1737495594371,0.6957539,106430.0,106420.0,0.45300353]
[1737495595465,0.6957539,106430.0,106420.0,0.39738624]
[1737495595872,0.75137119,106430.0,106420.0,0.39738624]
[1737495598678,0.77928982,106430.0,106420.0,0.34128624]
[1737495602678,0.83490711,106430.0,106420.0,0.34128624]
[1737495603082,0.77928982,106430.0,106420.0,0.34128624]
[1737495603881,0.77928982,106430.0,106420.0,0.33928624]
[1737495604073,0.78028982,106430.0,106420.0,0.33928624]
[1737495604878,0.78028982,106430.0,106420.0,0.33828624]
[1737495606876,0.83642178,106430.0,106420.0,0.17]
[1737495610784,0.42000449,106430.0,106420.0,0.58641729]
[1737495610994,0.35840449,106430.0,106420.0,0.82995758]
[1737495611284,0.29209528,106430.0,106420.0,1.08466473]
[1737495611491,0.29209528,106430.0,106420.0,1.02904744]
[1737495611785,0.28759528,106430.0,106420.0,1.02904744]
[1737495612190,0.47550128,106430.0,106420.0,0.84212444]
[1737495612387,0.47550128,106430.0,106420.0,0.58741729]
[1737495612778,0.47550128,106430.0,106420.0,0.28223458]
[1737495612982,0.47550128,106430.0,106420.0,2.14303458]
[1737495613183,0.47550128,106430.0,106420.0,1.72661729]
[1737495613390,0.47550128,106430.0,106420.0,2.08741729]
[1737495613894,0.47550128,106430.0,106420.0,2.14303458]
[1737495614099,0.47550128,106430.0,106420.0,2.14503458]
[1737495614786,0.187906,106430.0,106420.0,2.54772922]
[1737495616294,0.187906,106430.0,106420.0,2.79616847]
[1737495616491,0.187906,106430.0,106420.0,2.98409147]
[1737495616683,0.187906,106430.0,106420.0,2.92847418]
[1737495616992,0.187906,106430.0,106420.0,2.74055118]
[1737495617398,0.44092539,106450.0,106430.0,0.187906]
[1737495617584,0.44092539,106450.0,106440.0,0.47203458]
[1737495617988,0.44092539,106450.0,106440.0,0.67296092]
[1737495618586,0.44092539,106450.0,106440.0,2.17296092]
[1737495618795,0.44292539,106450.0,106440.0,2.17296092]
[1737495618991,0.44292539,106450.0,106440.0,2.18296092]
[1737495619196,0.44292539,106450.0,106440.0,2.54376092]
[1737495619387,0.3022896,106450.0,106440.0,2.54376092]
[1737495619585,0.189879,106450.0,106440.0,2.54376092]
[1737495619898,0.189879,106450.0,106440.0,2.51721754]
[1737495620195,0.189879,106450.0,106440.0,2.60190874]
[1737495620994,0.189879,106450.0,106440.0,2.61188295]
[1737495621597,0.189879,106450.0,106440.0,2.61198295]
[1737495623000,0.189879,106450.0,106440.0,3.19151407]
[1737495626592,0.189879,106450.0,106440.0,3.00362607]
[1737495627101,0.189879,106450.0,106440.0,2.61198295]
[1737495627700,0.189879,106450.0,106440.0,2.79987095]
[1737495628193,0.187826,106480.0,106440.0,2.65895395]
[1737495628392,0.187826,106480.0,106470.0,0.4454912]
[1737495628794,0.187826,106480.0,106470.0,1.9454912]
[1737495629403,0.188826,106480.0,106470.0,1.9454912]
[1737495629902,0.189826,106480.0,106470.0,1.9454912]
[1737495630106,0.189826,106480.0,106470.0,2.0501824]
[1737495630296,0.189826,106480.0,106470.0,1.8608]
[1737495630698,0.187835,106470.0,106460.0,0.44563249]
[1737495630900,0.250135,106470.0,106460.0,0.44563249]
[1737495631101,0.312335,106470.0,106460.0,1.94563249]
[1737495631308,0.373935,106470.0,106460.0,1.94563249]
[1737495631998,0.187835,106470.0,106460.0,1.94563249]
[1737495632206,0.189825,106480.0,106470.0,0.187835]
[1737495632414,0.188825,106480.0,106470.0,0.7180174]
[1737495632709,0.001,106480.0,106470.0,0.7180174]
[1737495632904,0.188817,106480.0,106470.0,0.81194498]
[1737495633107,0.306617,106480.0,106470.0,0.53941878]
[1737495633406,0.368917,106480.0,106470.0,0.4454912]
[1737495634612,0.369917,106480.0,106470.0,0.4454912]
[1737495636100,0.369917,106480.0,106470.0,0.3608]
[1737495636707,0.4546082,106480.0,106470.0,0.3608]
[1737495636896,0.368917,106480.0,106470.0,0.3608]
[1737495637099,0.369917,106480.0,106470.0,0.3608]
[1737495637611,0.369917,106480.0,106470.0,0.4454912]
[1737495640514,0.369917,106480.0,106470.0,0.3608]
[1737495641612,0.369917,106480.0,106470.0,0.4454912]
[1737495643309,0.369917,106480.0,106470.0,0.3608]
[1737495646617,0.1821,106480.0,106470.0,0.4454912]
[1737495646813,0.1821,106480.0,106470.0,0.74410116]
[1737495647017,0.1821,106480.0,106470.0,0.65940996]
[1737495647316,0.1821,106480.0,106470.0,2.15940996]
[1737495647622,0.1821,106480.0,106470.0,2.0654912]
[1737495648418,0.369916,106480.0,106470.0,1.9808]
[1737495648610,0.369916,106480.0,106470.0,0.3608]
[1737495649015,0.369916,106480.0,106470.0,1.8608]
[1737495650114,0.368916,106480.0,106470.0,1.8648]
[1737495651217,0.368916,106480.0,106470.0,1.9494912]
[1737495652023,0.1811,106480.0,106470.0,2.0341824]
[1737495652225,0.1811,106480.0,106470.0,2.43791095]
[1737495652823,0.1811,106480.0,106470.0,2.16538675]
[1737495653017,0.1811,106480.0,106470.0,1.9694912]
[1737495653217,0.368915,106480.0,106470.0,1.9694912]
[1737495654025,0.368915,106480.0,106470.0,0.4694912]
[1737495654616,0.368915,106480.0,106470.0,1.9694912]
[1737495657220,0.368915,106480.0,106470.0,1.8848]
[1737495657419,0.368915,106480.0,106470.0,0.3848]
[1737495658026,0.368915,106480.0,106470.0,0.4694912]
[1737495662125,0.1811,106480.0,106470.0,0.7419994]
[1737495662323,0.1811,106480.0,106470.0,0.83591816]
[1737495662630,0.1811,106480.0,106470.0,0.75122696]
[1737495663320,0.1811,106480.0,106470.0,2.25122696]
[1737495664327,0.1811,106480.0,106470.0,2.4756132]
[1737495667031,0.1811,106480.0,106470.0,2.53055852]
[1737495667628,0.368899,106480.0,106470.0,2.53055852]
[1737495667825,0.368899,106480.0,106470.0,0.66413156]
[1737495668137,0.368899,106480.0,106470.0,0.74882276]
[1737495668427,0.368899,106480.0,106470.0,2.24882276]
[1737495669326,0.368899,106480.0,106470.0,2.43663976]
[1737495671633,0.368899,106480.0,106470.0,2.24882276]
[1737495672639,0.1811,106480.0,106470.0,2.52133096]
[1737495673132,0.1811,106480.0,106470.0,2.47695254]
[1737495673321,0.1811,106480.0,106470.0,1.02133096]
[1737495673528,0.52008038,106500.0,106490.0,0.187781]
[1737495673728,0.36295905,106500.0,106490.0,1.2887634]
[1737495673924,0.36295905,106500.0,106490.0,2.80525326]
[1737495674129,0.36295905,106500.0,106490.0,2.89917202]
[1737495674727,0.36395905,106500.0,106490.0,2.91329202]
[1737495675131,0.1127,106500.0,106490.0,2.91329202]
[1737495675835,0.1137,106500.0,106490.0,2.91329202]
[1737495677632,0.10033683,106500.0,106490.0,2.91329202]
[1737495677832,0.22644459,106520.0,106510.0,0.187746]
[1737495678031,0.28494459,106520.0,106510.0,1.0840372]
[1737495678336,0.14855459,106520.0,106510.0,1.26979394]
[1737495678629,0.11888225,106530.0,106520.0,0.187729]
[1737495678843,0.11888225,106530.0,106520.0,0.8232202]
[1737495679234,0.22700955,106540.0,106520.0,0.91710369]
[1737495679535,0.22700955,106540.0,106530.0,1.8608]
[1737495680240,0.41470255,106540.0,106530.0,1.8608]
[1737495680435,0.41470255,106540.0,106530.0,0.3608]
[1737495680733,0.49939375,106540.0,106520.0,0.36094129]
[1737495680934,0.0607,106530.0,106520.0,1.94563249]
[1737495681334,0.0597,106530.0,106520.0,1.94563249]
[1737495681544,0.306211,106530.0,106520.0,0.44563249]
[1737495681832,0.306211,106530.0,106520.0,0.36094129]
[1737495681833,0.3909022,106530.0,106520.0,0.36094129]
[1737495682037,0.307211,106530.0,106520.0,0.36094129]
[1737495682543,0.307211,106530.0,106520.0,0.44563249]
[1737495682842,0.307211,106530.0,106520.0,0.45550506]
[1737495683044,0.307211,106530.0,106520.0,0.37081386]
[1737495683640,0.308211,106530.0,106520.0,0.45550506]
[1737495683842,0.308211,106530.0,106520.0,0.37081386]
[1737495684535,0.3929022,106530.0,106520.0,0.37081386]
[1737495684941,0.308211,106530.0,106520.0,0.37081386]
[1737495685335,0.3929022,106530.0,106520.0,0.37081386]
[1737495686939,0.187729,106520.0,106510.0,0.38928569]
[1737495687140,0.187746,106510.0,106500.0,0.28251966]
[1737495687441,0.187764,106500.0,106490.0,0.27933156]
[1737495687639,0.7179464,106500.0,106490.0,0.09673156]
[1737495687941,0.7179464,106500.0,106490.0,0.00543156]
[1737495688641,0.7179464,106500.0,106490.0,0.00843156]
[1737495688835,0.3571464,106500.0,106490.0,0.00843156]
[1737495689940,0.8301824,106500.0,106470.0,0.33519787]
[1737495690238,0.6332902,106480.0,106470.0,0.33519787]
[1737495690444,0.187834,106460.0,106450.0,1.5]
[1737495690742,0.0846912,106460.0,106440.0,0.00140898]
[1737495690932,0.2725432,106450.0,106440.0,0.36220898]
[1737495691137,0.2725432,106450.0,106440.0,0.37218391]
[1737495691944,0.2725432,106450.0,106440.0,0.37318391]
[1737495692541,0.2735432,106450.0,106440.0,0.37318391]
[1737495693142,0.2745432,106450.0,106440.0,0.37818391]
[1737495694050,0.18787,106440.0,106430.0,0.36106994]
[1737495694348,0.18787,106440.0,106430.0,0.37106994]
[1737495694646,0.18787,106440.0,106430.0,0.13357394]
[1737495694647,0.2725612,106440.0,106430.0,0.13357394]
[1737495694835,0.2725612,106440.0,106430.0,0.020085]
[1737495694836,0.7180524,106440.0,106430.0,0.020085]
[1737495695039,0.71815164,106440.0,106430.0,0.020085]
[1737495695435,0.71915164,106440.0,106430.0,0.015]
[1737495695641,0.72015164,106440.0,106430.0,0.015]
[1737495696139,0.71815164,106440.0,106430.0,0.013]
[1737495696449,0.71915164,106440.0,106430.0,0.013]
[1737495696748,0.71915164,106440.0,106430.0,0.003]
[1737495696949,0.187887,106430.0,106420.0,0.00014129]
[1737495697150,0.6888782,106430.0,106420.0,0.00014129]
[1737495698144,0.8083782,106430.0,106420.0,0.00014129]
[1737495698851,0.80848536,106430.0,106420.0,0.00014129]
[1737495702553,0.7051824,106430.0,106400.0,0.10140936]
[1737495702750,0.6334142,106410.0,106400.0,0.10140936]
[1737495703149,0.6334142,106410.0,106400.0,0.11123779]
[1737495704348,0.6344142,106410.0,106400.0,0.11123779]
[1737495704553,1.07998866,106410.0,106400.0,0.1]
[1737495704751,0.18794,106400.0,106390.0,0.00014129]
[1737495704954,0.6334312,106400.0,106390.0,0.00014129]
[1737495705751,0.63353836,106400.0,106390.0,0.00014129]
[1737495705960,0.80633836,106400.0,106390.0,0.00014129]
[1737495710351,0.816024,106400.0,106390.0,0.00014129]
[1737495715460,0.187958,106390.0,106380.0,0.09486296]
[1737495715664,0.548758,106390.0,106380.0,0.31283696]
[1737495715865,0.548758,106390.0,106380.0,0.22814576]
[1737495716066,0.548758,106390.0,106380.0,1.72814576]
[1737495716269,0.274858,106390.0,106380.0,1.81283696]
[1737495716572,0.462816,106390.0,106380.0,1.81283696]
[1737495716872,0.462816,106390.0,106380.0,1.72814576]
[1737495717068,0.187958,106390.0,106380.0,1.72814576]
[1737495717372,0.550758,106390.0,106380.0,1.72814576]
[1737495718766,0.550758,106390.0,106380.0,0.22814576]
[1737495719168,0.550758,106390.0,106380.0,1.72814576]
[1737495720275,0.550758,106390.0,106380.0,0.22814576]
[1737495721065,0.550758,106390.0,106380.0,0.04017176]
[1737495721270,0.6354492,106390.0,106380.0,0.04017176]
[1737495721564,0.8075492,106390.0,106380.0,0.04017176]
[1737495721969,0.8075492,106390.0,106380.0,0.03006037]
[1737495722374,0.80765238,106390.0,106380.0,0.03006037]
[1737495723194,0.80665238,106390.0,106380.0,0.03006037]
[1737495723377,0.72196118,106390.0,106380.0,0.03006037]
[1737495723579,0.00110318,106390.0,106380.0,0.66352757]
[1737495723888,0.32691357,106420.0,106410.0,0.187923]
[1737495724391,0.187912,106420.0,106410.0,0.248123]
[1737495725093,0.187912,106420.0,106400.0,0.63355749]
[1737495725284,0.187912,106420.0,106400.0,0.69245749]
[1737495725485,0.187912,106420.0,106400.0,2.19245749]
[1737495725791,0.2726032,106420.0,106400.0,2.10776629]
[1737495725992,0.187912,106420.0,106400.0,2.19245749]
[1737495726292,0.188912,106420.0,106400.0,2.19245749]
[1737495726494,0.189912,106420.0,106400.0,2.19245749]
[1737495726788,0.188912,106420.0,106400.0,2.19245749]
[1737495726992,0.189912,106420.0,106400.0,2.19245749]
[1737495729387,0.189912,106420.0,106410.0,0.2726132]
[1737495729695,0.189912,106420.0,106410.0,0.3875132]
[1737495730288,0.189912,106420.0,106410.0,0.1149]
[1737495730586,0.187922,106410.0,106400.0,0.43223358]
[1737495731003,0.187922,106410.0,106400.0,0.51692478]
[1737495731690,0.002,106420.0,106400.0,1.06566278]
[1737495731885,0.189908,106420.0,106410.0,0.6334132]
[1737495732694,0.1423303,106420.0,106400.0,0.70485978]
[1737495732895,0.187922,106410.0,106400.0,0.46223358]
[1737495733094,0.187922,106410.0,106400.0,0.10143358]
[1737495733397,0.187922,106410.0,106400.0,0.46323358]
[1737495733587,0.187922,106410.0,106400.0,0.54792478]
[1737495733788,0.187922,106410.0,106400.0,0.54692478]
[1737495734397,0.187922,106410.0,106400.0,0.48902478]
[1737495734598,0.367122,106410.0,106400.0,0.40433358]
[1737495734898,0.367122,106410.0,106400.0,0.48902478]
[1737495735694,0.187922,106410.0,106400.0,0.48902478]
[1737495735899,0.187922,106410.0,106400.0,0.79006478]
[1737495736091,0.187922,106410.0,106400.0,0.84516478]
[1737495736402,0.30017139,106410.0,106400.0,0.84516478]
[1737495738898,0.08418031,106410.0,106400.0,0.93914532]
[1737495739095,0.11224939,106420.0,106400.0,0.93914532]
[1737495739096,0.11224939,106420.0,106400.0,0.93659068]
[1737495739399,0.04285637,106420.0,106410.0,0.7181044]
[1737495739696,0.04285637,106420.0,106410.0,0.8134132]
[1737495739899,0.04285637,106420.0,106410.0,0.8981044]
[1737495740103,0.04285637,106420.0,106410.0,0.99208053]
[1737495740294,0.04385637,106420.0,106410.0,0.90738933]
[1737495740596,0.04485637,106420.0,106410.0,0.90738933]
[1737495740904,0.04485637,106420.0,106410.0,0.99208053]
[1737495742598,0.04485637,106420.0,106410.0,2.49208053]
[1737495743202,0.002,106420.0,106410.0,2.49208053]
[1737495745604,0.002,106420.0,106410.0,2.13128053]
[1737495745806,0.002,106420.0,106410.0,2.04658933]
[1737495746201,0.189905,106420.0,106410.0,2.04658933]
[1737495746400,0.189905,106420.0,106410.0,0.4526132]
[1737495746603,0.250605,106420.0,106410.0,0.2646912]
[1737495748300,0.250605,106420.0,106410.0,0.6254912]
[1737495748498,0.250605,106420.0,106410.0,0.2646912]
[1737495748698,0.250605,106420.0,106410.0,0.6254912]
[1737495749107,0.250605,106420.0,106410.0,0.2646912]
[1737495749301,0.250605,106420.0,106410.0,0.8134132]
[1737495750004,0.250605,106420.0,106410.0,0.4526132]
[1737495750605,0.250605,106420.0,106410.0,0.8134132]
[1737495750909,0.250605,106420.0,106410.0,0.4526132]
[1737495751910,0.250605,106420.0,106410.0,0.8134132]
[1737495752408,0.250605,106420.0,106410.0,2.3134132]
[1737495753101,0.250605,106420.0,106410.0,1.9526132]
[1737495753407,0.250605,106420.0,106410.0,2.3134132]
[1737495754096,0.250605,106420.0,106410.0,1.9526132]
[1737495754302,0.002,106420.0,106410.0,2.3981044]
[1737495754496,0.1403303,106450.0,106420.0,0.046975]
[1737495754707,0.18159697,106460.0,106450.0,0.187852]
[1737495754894,0.30858274,106480.0,106470.0,0.187817]
[1737495755096,0.30858274,106480.0,106470.0,0.3571994]
[1737495755299,0.85718174,106480.0,106470.0,0.0846912]
[1737495755505,0.85718174,106480.0,106470.0,1.7725082]
[1737495755709,0.49638174,106480.0,106470.0,1.7725082]
[1737495756905,0.49738174,106480.0,106470.0,1.7725082]
[1737495757498,0.49838174,106480.0,106470.0,1.7725082]
[1737495758106,0.85918174,106480.0,106470.0,1.78456009]
[1737495758307,0.662599,106480.0,106470.0,1.78456009]
[1737495759205,0.301799,106480.0,106470.0,1.78456009]
[1737495759399,0.662599,106480.0,106470.0,1.59674309]
[1737495759805,0.662599,106480.0,106470.0,0.09674309]
[1737495760311,0.662599,106480.0,106470.0,0.01205189]
[1737495760612,0.187817,106470.0,106460.0,0.22380355]
[1737495760807,0.6333082,106470.0,106460.0,0.22380355]
[1737495761002,0.548617,106470.0,106460.0,0.22380355]
[1737495761206,0.548617,106470.0,106460.0,0.30849475]
[1737495761406,0.548617,106470.0,106460.0,0.23619028]
[1737495762115,0.549617,106470.0,106460.0,0.00014129]
[1737495762311,0.6343082,106470.0,106460.0,0.00014129]
[1737495762811,0.6343082,106470.0,106440.0,2.00291831]
[1737495762812,0.8311824,106470.0,106440.0,2.00291831]
[1737495763015,0.9941432,106450.0,106440.0,0.51291831]
[1737495763311,0.18787,106440.0,106430.0,0.07397366]
[1737495763611,0.6333612,106440.0,106430.0,0.07397366]
[1737495763807,0.4454912,106440.0,106410.0,1.50140932]
[1737495764014,0.548705,106420.0,106410.0,1.68933132]
[1737495764209,0.548705,106420.0,106410.0,1.70186979]
[1737495765004,0.6333962,106420.0,106410.0,1.70186979]
[1737495765212,0.6333962,106420.0,106410.0,0.20186979]
[1737495765412,0.6343962,106420.0,106410.0,0.20186979]
[1737495765615,0.6353962,106420.0,106410.0,0.01394779]
[1737495765908,0.9961962,106420.0,106410.0,0.01394779]
[1737495766101,0.9961962,106420.0,106410.0,0.00155061]
[1737495766306,0.187958,106390.0,106380.0,6.037e-05]
[1737495766508,0.6334492,106390.0,106380.0,0.20803337]
[1737495766707,0.6334492,106390.0,106380.0,6.037e-05]
[1737495767008,0.6857492,106390.0,106380.0,6.037e-05]
[1737495767512,0.241258,106390.0,106380.0,6.037e-05]
[1737495767712,0.001,106390.0,106380.0,0.18803637]
[1737495768103,0.001,106390.0,106380.0,0.54883637]
[1737495768303,0.001,106390.0,106380.0,0.18803637]
[1737495769607,0.001,106390.0,106380.0,0.54883637]
[1737495769806,0.188958,106390.0,106380.0,0.54883637]
[1737495770007,0.188958,106390.0,106380.0,0.18803637]
[1737495770904,0.001,106390.0,106380.0,0.18803637]
[1737495771913,0.001,106390.0,106380.0,0.63352757]
[1737495772115,0.00014129,106400.0,106390.0,0.187958]
[1737495772410,0.548709,106420.0,106390.0,0.5029912]
[1737495772617,0.548709,106420.0,106410.0,0.187923]
[1737495773208,0.548709,106420.0,106410.0,1.687923]
[1737495774018,0.549709,106420.0,106410.0,1.687923]
[1737495774416,0.001,106420.0,106410.0,2.0054912]
[1737495774611,0.001,106420.0,106410.0,1.8855142]
[1737495775013,0.002,106420.0,106410.0,1.8855142]
[1737495775214,0.189905,106420.0,106410.0,1.800823]
[1737495776620,0.189905,106420.0,106410.0,1.747923]
[1737495776821,0.550705,106420.0,106410.0,1.747923]
[1737495777015,0.550705,106420.0,106410.0,1.7726142]
[1737495777214,0.550705,106420.0,106410.0,1.687923]
[1737495777517,0.550705,106420.0,106410.0,1.5]
[1737495777822,0.550705,106420.0,106400.0,0.28688749]
[1737495778017,0.4474912,106420.0,106400.0,0.59887629]
[1737495778323,0.6334132,106410.0,106400.0,0.00014129]
[1737495779623,0.2726132,106410.0,106400.0,0.18808129]
[1737495779813,0.6334132,106410.0,106400.0,0.18808129]
[1737495780014,0.6334132,106410.0,106400.0,0.19008129]
[1737495781218,0.548722,106410.0,106400.0,0.19008129]
[1737495782119,0.6334132,106410.0,106400.0,0.19008129]
[1737495783823,0.548722,106410.0,106400.0,0.19008129]
[1737495784023,0.65393929,106430.0,106420.0,0.187905]
[1737495784330,0.60093929,106430.0,106420.0,1.687905]
[1737495785221,0.60093929,106430.0,106420.0,0.187905]
[1737495785421,0.60193929,106430.0,106420.0,0.187905]
[1737495785627,0.60293929,106430.0,106420.0,0.187905]
[1737495786321,0.187905,106420.0,106410.0,1.737614]
[1737495786522,0.187905,106420.0,106410.0,1.747614]
[1737495788227,0.188905,106420.0,106410.0,1.747614]
[1737495789120,0.549705,106420.0,106410.0,1.747614]
[1737495789326,0.6343962,106420.0,106410.0,1.51]
[1737495789523,0.6343962,106420.0,106410.0,0.01]
[1737495789728,0.6343962,106420.0,106410.0,0.197923]
[1737495789923,0.549705,106420.0,106410.0,0.197923]
[1737495792023,0.001,106420.0,106410.0,0.2826142]
[1737495792224,0.001,106420.0,106410.0,0.37658591]
[1737495792731,0.001,106420.0,106410.0,0.73738591]
[1737495792929,0.00014129,106430.0,106420.0,0.187905]
[1737495793230,0.64397047,106460.0,106450.0,0.187852]
[1737495793231,0.32751929,106460.0,106450.0,0.187852]
[1737495793424,0.19658274,106460.0,106450.0,0.187852]
[1737495793741,0.19658274,106460.0,106450.0,0.293052]
[1737495793932,0.19658274,106460.0,106450.0,0.83881676]
[1737495794233,0.22480728,106470.0,106460.0,0.187834]
[1737495794427,0.22480728,106470.0,106460.0,0.6333252]
[1737495794734,0.22480728,106470.0,106460.0,0.73359876]
[1737495794933,0.22480728,106470.0,106460.0,0.84164634]
[1737495795631,0.22480728,106470.0,106460.0,2.38393193]
[1737495796427,0.22580728,106470.0,106460.0,2.38393193]
[1737495796934,0.22680728,106470.0,106460.0,2.38393193]
[1737495797235,0.00214129,106470.0,106460.0,2.41393193]
[1737495799531,0.00214129,106470.0,106460.0,2.46443193]
[1737495799833,0.648566,106500.0,106480.0,0.187782]
[1737495800031,0.648566,106500.0,106490.0,0.187782]
[1737495800426,0.648566,106500.0,106490.0,1.687782]
[1737495800733,0.648566,106500.0,106490.0,0.187782]
[1737495801134,0.649566,106500.0,106490.0,0.187782]
[1737495801728,0.648566,106500.0,106490.0,0.187782]
[1737495801923,0.649566,106500.0,106490.0,0.187782]
[1737495802427,0.650566,106500.0,106490.0,0.187782]
[1737495802841,0.187782,106490.0,106480.0,0.18794029]
[1737495803138,0.548582,106490.0,106480.0,0.18794029]
[1737495803535,0.67555879,106490.0,106480.0,0.00014129]
[1737495804038,0.67755879,106490.0,106480.0,0.00014129]
[1737495804241,0.72775879,106490.0,106480.0,0.00014129]
[1737495805041,0.53997679,106490.0,106460.0,0.187818]
[1737495805340,0.187817,106470.0,106460.0,0.197818]
[1737495805538,0.187817,106470.0,106460.0,1.697818]
[1737495805838,0.548617,106470.0,106460.0,1.697818]
[1737495806436,0.67559379,106470.0,106460.0,0.01]
[1737495806934,0.187835,106460.0,106450.0,0.00014129]
[1737495807138,0.548635,106460.0,106450.0,0.00014129]
[1737495807332,0.67561179,106460.0,106450.0,0.00014129]
[1737495807532,0.72861179,106460.0,106450.0,1.50014129]
[1737495807933,0.601635,106460.0,106450.0,1.68799329]
[1737495808134,0.602635,106460.0,106450.0,1.68799329]
[1737495809743,0.602635,106460.0,106450.0,0.18799329]
[1737495810645,0.602635,106460.0,106450.0,0.00014129]
[1737495811337,0.72961179,106460.0,106450.0,0.00014129]
[1737495812143,0.74156454,106460.0,106450.0,0.00014129]
[1737495812346,0.61458775,106460.0,106450.0,0.00014129]
[1737495812640,0.56158775,106460.0,106450.0,0.18799329]
[1737495813336,0.549635,106460.0,106450.0,0.18799329]
[1737495814035,0.3618,106460.0,106450.0,0.18799329]
[1737495814237,0.3618,106460.0,106450.0,0.23989329]
[1737495816651,0.001,106460.0,106450.0,0.55080648]
[1737495816843,0.001,106460.0,106450.0,0.91160648]
[1737495817150,0.001,106460.0,106450.0,0.55080648]
[1737495817353,0.001,106460.0,106450.0,0.91160648]
[1737495817542,0.11196897,106480.0,106450.0,0.82806366]
[1737495817744,0.14009508,106490.0,106470.0,0.89082684]
[1737495817945,0.19536628,106510.0,106490.0,0.187782]
[1737495818237,0.701697,106540.0,106520.0,0.187724]
[1737495818547,0.44541342,106550.0,106520.0,0.187724]
[1737495818548,0.3608,106550.0,106530.0,0.08461342]
[1737495818743,1.13008023,106560.0,106540.0,0.27230042]
[1737495818943,0.36094129,106550.0,106540.0,0.187687]
[1737495819145,0.54861729,106550.0,106530.0,0.08475471]
[1737495819338,0.54861729,106550.0,106530.0,0.27246271]
[1737495819339,0.001,106540.0,106530.0,0.27246271]
[1737495819538,0.001,106540.0,106530.0,0.00014129]
[1737495819539,0.63410742,106540.0,106530.0,0.00014129]
[1737495819841,0.49234042,106540.0,106500.0,0.187761]
[1737495820047,0.187747,106510.0,106500.0,0.27237442]
[1737495820344,0.548547,106510.0,106500.0,1.77237442]
[1737495820548,0.548547,106510.0,106500.0,1.58461342]
[1737495820750,0.548547,106510.0,106500.0,0.01157769]
[1737495820948,0.187764,106500.0,106490.0,0.18932173]
[1737495821144,0.548564,106500.0,106490.0,0.27393515]
[1737495821755,0.41094129,106520.0,106500.0,0.187757]
[1737495821954,0.59867229,106520.0,106510.0,0.187747]
[1737495822946,0.65247229,106520.0,106510.0,0.187747]
[1737495823252,0.65347229,106520.0,106510.0,0.187747]
[1737495825657,0.10494129,106520.0,106510.0,0.187747]
[1737495825853,0.29267029,106520.0,106510.0,0.187747]
[1737495827456,0.65347029,106520.0,106510.0,0.187747]
[1737495827658,0.65347029,106520.0,106510.0,0.19974868]
[1737495829160,0.00214129,106520.0,106510.0,0.79135623]
[1737495829457,0.3608,106560.0,106530.0,0.093854]
[1737495829458,0.704473,106560.0,106530.0,0.093854]
[1737495829662,0.704473,106560.0,106550.0,0.187676]
[1737495831167,0.344673,106560.0,106550.0,0.187676]
[1737495831370,0.705473,106560.0,106550.0,0.187676]
[1737495831575,0.706473,106560.0,106550.0,0.187676]
[1737495832361,0.187676,106550.0,106540.0,0.00014129]
[1737495832570,0.67540006,106550.0,106540.0,0.00014129]
[1737495833778,0.187711,106530.0,106520.0,0.187726]
[1737495833969,0.548511,106530.0,106520.0,0.187726]
[1737495834671,0.3608,106540.0,106520.0,0.12692406]
[1737495834877,0.54864029,106540.0,106530.0,0.187711]
[1737495835475,0.188729,106530.0,106520.0,0.187726]
[1737495835673,0.549529,106530.0,106520.0,0.187726]
[1737495836176,0.548529,106530.0,106520.0,0.187726]
[1737495836784,0.598229,106530.0,106520.0,0.187726]
[1737495837080,0.650229,106530.0,106520.0,0.187726]
[1737495837275,0.5125,106530.0,106510.0,1.51164483]
[1737495837477,0.548529,106520.0,106510.0,1.69938783]
[1737495839383,0.549529,106520.0,106510.0,1.69938783]
[1737495840286,0.550529,106520.0,106510.0,1.69938783]
[1737495841380,0.550529,106520.0,106510.0,1.51164483]
[1737495841580,0.67745306,106520.0,106510.0,0.00014129]
[1737495842282,0.187764,106500.0,106490.0,0.00140844]
[1737495842481,0.187817,106480.0,106470.0,0.19950835]
[1737495842684,0.909417,106480.0,106470.0,0.187814]
[1737495844282,0.910417,106480.0,106470.0,0.191814]
[1737495845286,0.961417,106480.0,106470.0,0.195814]
[1737495848387,0.239817,106480.0,106470.0,0.195814]
[1737495848789,0.600617,106480.0,106470.0,0.195814]
[1737495850587,0.600617,106480.0,106470.0,0.008]
[1737495850588,0.72754106,106480.0,106470.0,0.008]
[1737495852093,0.239817,106480.0,106470.0,0.195817]
[1737495852684,0.239817,106480.0,106470.0,1.695817]
[1737495853291,0.600617,106480.0,106470.0,1.695817]
[1737495854191,0.001,106480.0,106470.0,1.84274106]
[1737495854390,0.05434129,106490.0,106480.0,0.187799]
[1737495854595,0.00014129,106490.0,106480.0,0.548599]
[1737495854790,0.18792329,106490.0,106480.0,0.237799]
[1737495855490,0.18792329,106490.0,106480.0,0.239799]
[1737495855695,0.18792329,106490.0,106480.0,0.189799]
[1737495856689,0.18892329,106490.0,106480.0,0.194799]
[1737495857894,0.00114129,106490.0,106480.0,0.2994514]
[1737495858186,0.00114129,106490.0,106480.0,2.1602514]
[1737495858393,0.00114129,106490.0,106480.0,1.7994514]
[1737495859295,0.00114129,106490.0,106480.0,1.714799]
[1737495859796,0.604949,106510.0,106500.0,0.187764]
[1737495860396,0.548549,106510.0,106500.0,1.7724164]
[1737495860597,0.548549,106510.0,106500.0,1.739264]
[1737495860990,0.549549,106510.0,106500.0,1.739264]
[1737495862000,0.3618,106510.0,106500.0,1.8239164]
[1737495862300,0.001,106510.0,106500.0,2.1847164]
[1737495862509,0.001,106510.0,106500.0,2.2147164]
[1737495865408,0.001,106510.0,106500.0,2.225983]
[1737495866701,0.001,106510.0,106500.0,1.865183]
[1737495867902,0.001,106510.0,106500.0,2.225983]
[1737495868208,0.001,106510.0,106500.0,1.865183]
[1737495869010,0.001,106510.0,106500.0,2.225983]
[1737495874213,0.001,106510.0,106500.0,2.4045277]
[1737495874514,0.001,106510.0,106500.0,0.9045277]
[1737495874905,0.001,106510.0,106500.0,2.3198753]
[1737495876616,0.001,106510.0,106500.0,2.4045277]
[1737495877516,0.001,106510.0,106500.0,2.3198753]
[1737495880023,0.001,106510.0,106500.0,2.4045277]
[1737495885019,0.001,106510.0,106500.0,1.04237417]
[1737495885523,0.001,106510.0,106500.0,2.54237417]